bitfinex/quotes_SOLUSD_20260311
["timestamp","ask_amount","ask_price","bid_price","bid_amount"]
[1773237924873,12.01393112,86.26,86.221,11.5979696]
[1773237925589,7.12736876,86.269,86.24,7.53824908]
[1773237925772,7.12736876,86.269,86.25,7.53824908]
[1773237925971,7.12736876,86.269,86.251,4.1016903]
[1773237926172,11.59178374,86.268,86.251,4.1016903]
[1773237926383,11.59178374,86.268,86.241,4.1016903]
[1773237926590,4.47568204,86.267,86.23,11.63993938]
[1773237926968,7.12736876,86.269,86.241,4.1016903]
[1773237927169,7.12736876,86.269,86.251,4.1016903]
[1773237927394,7.53824908,86.29,86.251,4.1016903]
[1773237927570,19.12709661,86.29,86.252,11.59393405]
[1773237927974,4.47568204,86.289,86.241,4.1016903]
[1773237928286,4.47568204,86.279,86.241,4.1016903]
[1773237928494,7.53824908,86.27,86.24,19.13379638]
[1773237928867,7.53824908,86.27,86.221,2.78]
[1773237928868,4.47568204,86.277,86.223,4.1016903]
[1773237929082,4.47568204,86.277,86.221,11.59810255]
[1773237929083,11.58884753,86.29,86.26,7.53824908]
[1773237929289,33.44450679,86.3,86.261,4.1016903]
[1773237929471,11.58761978,86.299,86.27,7.53824908]
[1773237929674,11.58627721,86.309,86.28,7.53824908]
[1773237929894,7.12788457,86.311,86.269,4.1016903]
[1773237929895,19.12439205,86.31,86.269,4.1016903]
[1773237930191,48.08974948,86.31,86.271,4.1016903]
[1773237930391,11.58614297,86.31,86.28,7.53824908]
[1773237930971,4.47568204,86.309,86.27,7.53824908]
[1773237931394,4.47568204,86.309,86.271,4.1016903]
[1773237931770,40.55244009,86.308,86.27,7.53824908]
[1773237931978,4.47568204,86.307,86.27,7.53824908]
[1773237932273,40.55244009,86.308,86.251,4.1016903]
[1773237932274,7.53824908,86.29,86.251,4.1016903]
[1773237932598,4.47568204,86.289,86.251,4.1016903]
[1773237932802,7.53824908,86.28,86.241,11.59541285]
[1773237933299,7.53824908,86.29,86.251,4.1016903]
[1773237933683,7.53824908,86.3,86.261,4.1016903]
[1773237933988,7.53824908,86.3,86.252,40.57876918]
[1773237933989,11.58697548,86.304,86.271,4.1016903]
[1773237934500,7.12788457,86.311,86.28,7.53824908]
[1773237934501,11.5864048,86.309,86.28,7.53824908]
[1773237935011,11.5864048,86.309,86.271,4.1016903]
[1773237935012,7.53824908,86.3,86.271,4.1016903]
[1773237935175,11.5864048,86.309,86.271,4.1016903]
[1773237935679,40.55209783,86.309,86.272,11.59124629]
[1773237935888,11.5864048,86.309,86.273,4.1016903]
[1773237936301,11.5864048,86.309,86.272,11.59124629]
[1773237936302,7.12788457,86.311,86.29,7.53824908]
[1773237936806,7.12788457,86.311,86.291,4.1016903]
[1773237937010,7.12788457,86.311,86.273,4.1016903]
[1773237937296,4.47568204,86.337,86.291,4.1016903]
[1773237937480,7.53824908,86.33,86.291,4.1016903]
[1773237937678,7.53824908,86.34,86.303,4.1016903]
[1773237937885,11.5823855,86.338,86.303,4.1016903]
[1773237938080,11.58184112,86.343,86.31,7.53824908]
[1773237938403,7.53824908,86.34,86.303,4.1016903]
[1773237938593,4.47568204,86.339,86.291,4.1016903]
[1773237938798,4.47568204,86.339,86.301,4.1016903]
[1773237939104,7.53824908,86.33,86.301,4.1016903]
[1773237939708,4.47568204,86.339,86.301,4.1016903]
[1773237939888,11.5823855,86.338,86.303,4.1016903]
[1773237940088,11.5823855,86.338,86.283,2.78]
[1773237940089,4.46725554,86.319,86.28,11.94085389]
[1773237940290,4.46725554,86.319,86.283,4.40260481]
[1773237940497,4.46725554,86.329,86.291,4.40260481]
[1773237941073,4.46725554,86.329,86.3,7.53824908]
[1773237941293,4.46725554,86.329,86.282,11.58980113]
[1773237941294,7.53824908,86.35,86.311,4.40260481]
[1773237941701,11.57998123,86.356,86.321,4.40260481]
[1773237941992,0.1,86.36,86.331,4.40260481]
[1773237942303,0.1,86.36,86.341,4.40260481]
[1773237942693,0.1,86.36,86.325,4.40260481]
[1773237942890,7.53824908,86.35,86.317,11.58515706]
[1773237943198,7.53824908,86.35,86.311,4.40260481]
[1773237943199,7.53824908,86.34,86.312,11.5858745]
[1773237943402,40.52849152,86.359,86.321,4.40260481]
[1773237943779,40.52849152,86.359,86.32,7.53824908]
[1773237943780,0.1,86.36,86.331,4.40260481]
[1773237943998,7.63824908,86.36,86.332,15.98579528]
[1773237944299,0.1,86.36,86.333,4.40260481]
[1773237945097,0.1,86.36,86.332,11.58319047]
[1773237945098,0.1,86.36,86.341,4.40260481]
[1773237945603,11.5756818,86.388,86.351,4.40260481]
[1773237945799,11.5768879,86.379,86.351,4.40260481]
[1773237946303,11.67545155,86.39,86.361,4.40260481]
[1773237946694,19.21370063,86.39,86.361,4.40260481]
[1773237947001,0.1,86.39,86.361,4.40260481]
[1773237947203,0.1,86.4,86.352,40.5317769]
[1773237947204,1e-08,86.4,86.381,4.40260481]
[1773237948114,4.46725554,86.399,86.366,4.40260481]
[1773237948400,4.46725554,86.399,86.36,7.53824908]
[1773237948401,4.46725554,86.379,86.341,4.40260481]
[1773237948603,4.46725554,86.369,86.331,4.40260481]
[1773237948986,7.53824908,86.36,86.33,7.53824908]
[1773237949190,4.46725554,86.369,86.331,4.40260481]
[1773237949805,7.53824908,86.37,86.33,19.1217079]
[1773237949806,7.53824908,86.38,86.341,4.33797922]
[1773237950193,11.5768879,86.379,86.343,4.33797922]
[1773237950410,40.51910765,86.379,86.343,4.33797922]
[1773237951010,11.5768879,86.379,86.343,4.33797922]
[1773237951210,7.53824908,86.36,86.326,4.33797922]
[1773237951397,7.53824908,86.37,86.331,4.33797922]
[1773237951892,7.53824908,86.36,86.331,4.33797922]
[1773237952105,7.53824908,86.37,86.331,4.33797922]
[1773237952413,7.53824908,86.37,86.333,4.33797922]
[1773237952414,11.57822829,86.369,86.333,4.33797922]
[1773237952912,11.57822829,86.369,86.321,4.33797922]
[1773237952913,4.19805003,86.359,86.321,4.33797922]
[1773237953214,40.52379903,86.369,86.311,4.33797922]
[1773237953215,4.19805003,86.349,86.311,4.33797922]
[1773237953594,7.53824908,86.34,86.311,4.33797922]
[1773237953796,4.19805003,86.349,86.311,4.33797922]
[1773237954434,40.5336545,86.348,86.311,15.92391703]
[1773237955211,4.19805003,86.339,86.279,4.33797922]
[1773237955406,7.53824908,86.34,86.311,4.33797922]
[1773237955615,7.51658235,86.34,86.311,4.33797922]
[1773237955792,40.5336545,86.348,86.311,4.33797922]
[1773237956111,11.58104414,86.348,86.311,4.33797922]
[1773237956712,23.2954189,86.35,86.313,4.33797922]
[1773237957021,19.09736887,86.35,86.313,4.33797922]
[1773237958221,11.58025437,86.354,86.321,4.33797922]
[1773237958718,28.94618642,86.368,86.333,4.33797922]
[1773237959203,33.14423645,86.368,86.333,4.33797922]
[1773237959403,33.14423645,86.368,86.32,7.51658235]
[1773237959404,4.19805003,86.359,86.32,7.51658235]
[1773237959712,4.19805003,86.359,86.321,15.92259522]
[1773237959915,4.19805003,86.359,86.322,4.33797922]
[1773237960113,28.94618642,86.368,86.33,11.85456157]
[1773237960313,11.57766063,86.374,86.341,4.33797922]
[1773237960623,11.5769894,86.379,86.343,4.33797922]
[1773237960806,11.5769894,86.379,86.342,40.53647123]
[1773237960807,11.57394802,86.401,86.371,4.33797922]
[1773237961120,4.19805003,86.379,86.344,4.33797922]
[1773237961301,11.57420803,86.399,86.36,7.51658235]
[1773237961302,7.51658235,86.39,86.36,7.51658235]
[1773237961508,11.57420803,86.399,86.361,4.33797922]
[1773237962010,7.51658235,86.39,86.361,4.33797922]
[1773237962221,7.51658235,86.39,86.351,4.33797922]
[1773237962412,4.19805003,86.389,86.351,4.33797922]
[1773237962612,7.51658235,86.38,86.34,7.51658235]
[1773237962810,7.51658235,86.38,86.341,4.33797922]
[1773237963206,4.19805003,86.381,86.35,7.51658235]
[1773237963413,7.51658235,86.39,86.351,4.33797922]
[1773237963811,40.51441734,86.389,86.351,4.33797922]
[1773237964014,4.19805003,86.392,86.36,7.51658235]
[1773237964209,11.57527983,86.391,86.361,4.33797922]
[1773237964424,4.19805003,86.389,86.351,4.33797922]
[1773237964923,11.5756818,86.388,86.36,7.51658235]
[1773237966206,4.19805003,86.387,86.345,11.58136146]
[1773237966500,40.51488631,86.388,86.351,4.33797922]
[1773237966501,11.5756818,86.388,86.351,4.33797922]
[1773237966722,4.19805003,86.379,86.34,11.85456157]
[1773237966906,4.19805003,86.379,86.343,11.58171478]
[1773237967108,11.57702192,86.378,86.35,7.51658235]
[1773237967431,11.57420803,86.399,86.371,4.33797922]
[1773237967638,1e-08,86.4,86.381,4.33797922]
[1773237969021,1e-08,86.4,86.382,11.57648584]
[1773237969214,1e-08,86.4,86.383,4.33797922]
[1773237969460,1e-08,86.41,86.394,4.33797922]
[1773237969722,1e-08,86.41,86.391,4.33797922]
[1773237970024,1e-08,86.41,86.39,7.51658235]
[1773237970414,1e-08,86.41,86.382,40.51770044]
[1773237970624,1e-08,86.41,86.39,11.85456157]
[1773237971525,1e-08,86.41,86.391,11.57527983]
[1773237971824,1e-08,86.41,86.39,4.33797922]
[1773237972029,1e-08,86.41,86.391,11.57527983]
[1773237972224,4.19805003,86.409,86.37,7.51658235]
[1773237972418,4.19805003,86.409,86.369,11.57822829]
[1773237972614,4.19805003,86.389,86.351,4.33797922]
[1773237972821,1e-08,86.41,86.288,46.35627804]
[1773237972822,4.19805003,86.369,86.334,11.58290983]
[1773237973021,7.51658235,86.36,86.334,11.58290983]
[1773237973330,7.51658235,86.36,86.32,7.51658235]
[1773237973331,11.579569,86.359,86.329,11.58352144]
[1773237973531,4.19805003,86.358,86.329,11.58352144]
[1773237973923,7.51658235,86.36,86.329,40.54250393]
[1773237974321,4.19805003,86.339,86.299,3.69383402]
[1773237974630,7.51658235,86.31,86.276,4.33797922]
[1773237974835,4.82477569,86.338,86.254,2.76]
[1773237974836,7.51658235,86.3,86.265,4.33797922]
[1773237975325,7.51658235,86.3,86.252,70.57876918]
[1773237975326,4.19805003,86.322,86.28,7.51658235]
[1773237975519,7.51658235,86.32,86.281,4.33797922]
[1773237975714,4.19805003,86.322,86.29,7.51658235]
[1773237976137,11.58466653,86.321,86.281,4.33797922]
[1773237976331,7.51658235,86.33,86.291,4.33797922]
[1773237976834,11.58359299,86.329,86.291,4.33797922]
[1773237977535,7.51658235,86.34,86.301,4.33797922]
[1773237977831,11.5823494,86.339,86.301,4.33797922]
[1773237978014,4.19805003,86.338,86.3,7.51658235]
[1773237978217,4.19805003,86.338,86.301,4.33797922]
[1773237978417,11.5811775,86.348,86.311,4.33797922]
[1773237978812,23.29283505,86.37,86.33,7.51658235]
[1773237979024,23.29283505,86.37,86.34,7.51658235]
[1773237979025,11.57822829,86.369,86.34,7.51658235]
[1773237979213,11.57822829,86.369,86.32,7.51658235]
[1773237979214,7.51658235,86.36,86.32,7.51658235]
[1773237979435,7.51658235,86.36,86.323,4.33797922]
[1773237979436,11.579569,86.359,86.323,4.33797922]
[1773237979731,7.51658235,86.36,86.323,4.35559595]
[1773237979930,4.46701644,86.359,86.323,4.35559595]
[1773237980126,4.46701644,86.359,86.32,7.51658235]
[1773237980428,4.46701644,86.349,86.312,4.35559595]
[1773237980634,4.46701644,86.349,86.314,4.35559595]
[1773237981133,4.46701644,86.329,86.291,4.35559595]
[1773237981318,7.51658235,86.32,86.292,11.58855977]
[1773237981726,16.05074362,86.328,86.292,15.94415572]
[1773237981920,16.05074362,86.328,86.292,4.35559595]
[1773237982331,16.05074362,86.328,86.28,4.35559595]
[1773237982332,4.46701644,86.319,86.28,4.35559595]
[1773237982522,4.46701644,86.319,86.28,11.8721783]
[1773237982723,40.54304513,86.328,86.215,46.395392]
[1773237982724,4.46701644,86.289,86.25,7.51658235]
[1773237982927,7.51658235,86.29,86.25,7.51658235]
[1773237983136,4.46701644,86.289,86.251,4.35559595]
[1773237983317,11.58775406,86.298,86.252,11.59393405]
[1773237983521,11.58775406,86.298,86.26,7.51658235]
[1773237983930,7.51658235,86.29,86.26,7.51658235]
[1773237984134,4.46701644,86.279,86.24,11.8721783]
[1773237984344,4.46701644,86.279,86.24,4.35559595]
[1773237984516,4.46701644,86.279,86.24,11.8721783]
[1773237984713,4.46701644,86.279,86.241,11.59541285]
[1773237984942,4.46701644,86.289,86.25,7.51658235]
[1773237985118,4.46701644,86.279,86.24,19.11199684]
[1773237985434,4.46701644,86.259,86.22,7.51658235]
[1773237985816,7.51658235,86.27,86.23,7.51658235]
[1773237986126,11.5904402,86.278,86.241,4.35559595]
[1773237986442,7.51658235,86.27,86.241,4.35559595]
[1773237986817,4.46701644,86.269,86.23,7.51658235]
[1773237987017,7.51658235,86.27,86.227,4.35559595]
[1773237987239,11.5904402,86.278,86.241,4.35559595]
[1773237987444,11.5904402,86.278,86.242,11.5952784]
[1773237987634,4.46701644,86.269,86.23,7.51658235]
[1773237987837,11.5904402,86.278,86.205,3.69383402]
[1773237987838,11.5904402,86.278,86.241,4.35559595]
[1773237988025,16.05745664,86.278,86.241,4.35559595]
[1773237988422,11.58909697,86.288,86.251,4.35559595]
[1773237989239,7.51658235,86.27,86.231,4.35559595]
[1773237989446,4.46701644,86.269,86.231,4.35559595]
[1773237989647,4.46701644,86.259,86.227,11.59723995]
[1773237990145,11.59178374,86.268,86.231,4.35559595]
[1773237990340,40.57124309,86.268,86.231,4.35559595]
[1773237990546,4.46701644,86.259,86.22,19.1147683]
[1773237990931,4.46701644,86.259,86.221,4.35559595]
[1773237991131,11.59178374,86.268,86.23,11.8721783]
[1773237991431,16.05880018,86.268,86.23,11.8721783]
[1773237991637,16.05880018,86.268,86.231,11.59675754]
[1773237991833,16.05880018,86.268,86.231,15.95235349]
[1773237992035,11.5911892,86.273,86.241,4.35559595]
[1773237992662,11.5911892,86.273,86.231,40.5886514]
[1773237992663,2.78,86.292,86.261,4.35559595]
[1773237992843,46.32010029,86.356,86.231,237.73352967]
[1773237992844,7.51658235,86.31,86.27,7.51658235]
[1773237993143,7.51658235,86.32,86.281,4.35559595]
[1773237993347,4.46701644,86.309,86.27,11.8721783]
[1773237993543,40.54351477,86.327,86.26,7.51658235]
[1773237993544,4.46701644,86.299,86.26,7.51658235]
[1773237993719,11.58627721,86.309,86.271,4.35559595]
[1773237994430,7.51658235,86.32,86.281,4.35559595]
[1773237994939,7.51658235,86.31,86.281,4.35559595]
[1773237995638,4.46701644,86.319,86.281,4.35559595]
[1773237995827,11.58506916,86.318,86.282,11.58990287]
[1773237996029,7.51658235,86.31,86.277,11.59048656]
[1773237996222,4.46701644,86.309,86.272,11.59114017]
[1773237996428,7.51658235,86.31,86.281,4.35559595]
[1773237996932,4.46701644,86.317,86.281,4.35559595]
[1773237997635,11.58506916,86.318,86.281,4.35559595]
[1773237997825,11.58506916,86.318,86.282,11.58990287]
[1773237998020,4.46701644,86.328,86.29,7.51658235]
[1773237998225,7.51658235,86.32,86.29,7.51658235]
[1773237998424,4.46701644,86.328,86.291,4.35559595]
[1773237998839,4.46701644,86.328,86.3,7.51658235]
[1773237999043,11.58386136,86.327,86.3,7.51658235]
[1773237999227,7.51658235,86.32,86.291,4.35559595]
[1773238000142,7.51658235,86.34,86.301,4.19761347]
[1773238000645,7.51658235,86.33,86.301,4.19761347]
[1773238000835,7.51658235,86.33,86.292,40.5599592]
[1773238000836,7.51658235,86.33,86.292,44.75757267]
[1773238001322,7.51658235,86.32,86.292,15.78617324]
[1773238001521,4.08025709,86.329,86.292,15.78617324]
[1773238001829,4.08025709,86.338,86.3,7.51658235]
[1773238002235,7.51658235,86.33,86.3,7.51658235]
[1773238002547,40.53881881,86.337,86.291,11.58869407]
[1773238002548,4.08025709,86.319,86.291,11.58869407]
[1773238003236,7.51658235,86.33,86.292,4.19761347]
[1773238003543,4.08025709,86.329,86.292,4.19761347]
[1773238003745,7.51658235,86.32,86.291,11.58869407]
[1773238003924,4.08025709,86.329,86.3,7.51658235]
[1773238004335,11.58251966,86.337,86.302,11.58721698]
[1773238004642,7.51658235,86.33,86.296,11.5879493]
[1773238005019,4.08025709,86.329,86.291,4.19761347]
[1773238005225,7.51658235,86.32,86.29,19.10531512]
[1773238005527,7.51658235,86.31,86.281,4.19761347]
[1773238005728,4.08025709,86.309,86.27,11.71419582]
[1773238005929,4.08025709,86.309,86.272,4.19761347]
[1773238006124,4.08025709,86.309,86.27,7.51658235]
[1773238006342,11.58909697,86.288,86.252,11.59393405]
[1773238006648,11.58909697,86.288,86.26,7.51658235]
[1773238007529,11.58775406,86.298,86.261,4.19761347]
[1773238007732,4.08025709,86.297,86.261,4.19761347]
[1773238008542,7.51658235,86.29,86.251,4.19761347]
[1773238008832,4.08025709,86.289,86.255,11.59346573]
[1773238009333,4.08025709,86.289,86.24,28.98858435]
[1773238009334,4.08025709,86.279,86.24,11.71419582]
[1773238009527,4.08025709,86.279,86.196,46.40549394]
[1773238009528,4.08025709,86.259,86.222,11.59792231]
[1773238009834,4.08025709,86.259,86.221,15.90359242]
[1773238010039,4.08025709,86.259,86.222,4.30548987]
[1773238010545,11.59312759,86.258,86.231,4.30548987]
[1773238010944,11.59226595,86.265,86.231,4.30548987]
[1773238011548,11.59226595,86.265,86.24,11.82207222]
[1773238011847,11.59226595,86.265,86.241,4.30548987]
[1773238012144,4.41571276,86.264,86.23,7.51658235]
[1773238012346,11.59226595,86.265,86.24,7.51658235]
[1773238012545,11.59226595,86.265,86.241,4.30548987]
[1773238013140,28.97925915,86.269,86.241,4.30548987]
[1773238013333,4.41571276,86.259,86.22,7.51658235]
[1773238013644,7.51658235,86.26,86.23,7.51658235]
[1773238013846,7.51658235,86.28,86.231,4.30548987]
[1773238014156,7.51658235,86.27,86.237,4.30548987]
[1773238014337,4.41571276,86.269,86.23,7.51658235]
[1773238014538,4.41571276,86.269,86.231,4.30548987]
[1773238014933,7.51658235,86.26,86.231,4.30548987]
[1773238015454,4.41571276,86.258,86.222,4.30548987]
[1773238015659,11.59299319,86.259,86.21,7.51658235]
[1773238015660,4.41571276,86.249,86.211,4.30548987]
[1773238015950,4.41571276,86.249,86.211,11.59944786]
[1773238016147,4.41571276,86.249,86.212,4.30548987]
[1773238016538,7.53247812,86.23,86.202,4.30548987]
[1773238016741,7.53247812,86.22,86.191,4.30548987]
[1773238017051,191.28438768,86.259,86.191,4.30548987]
[1773238017052,4.41571276,86.258,86.211,4.30548987]
[1773238017253,4.41571276,86.258,86.22,7.53247812]
[1773238017463,11.59326199,86.257,86.223,4.30548987]
[1773238018038,7.53247812,86.25,86.211,4.30548987]
[1773238018335,11.59326199,86.257,86.231,4.30548987]
[1773238019256,4.41571276,86.277,86.24,7.53247812]
[1773238019438,4.41571276,86.277,86.241,4.30548987]
[1773238019761,7.53247812,86.27,86.241,4.30548987]
[1773238019946,4.41571276,86.275,86.242,11.5952784]
[1773238020540,7.53247812,86.3,86.261,4.30548987]
[1773238020739,7.53247812,86.31,86.271,4.30548987]
[1773238020938,7.53247812,86.31,86.281,4.30548987]
[1773238021167,7.53247812,86.3,86.25,4.30548987]
[1773238021368,2.32228324,86.299,86.26,7.53247812]
[1773238021662,11.58896267,86.289,86.259,11.59299319]
[1773238021867,11.58896267,86.289,86.258,4.30548987]
[1773238022036,11.58896267,86.289,86.25,7.53247812]
[1773238022037,4.41571276,86.288,86.25,7.53247812]
[1773238022236,4.41571276,86.288,86.253,4.30548987]
[1773238022456,4.41571276,86.269,86.216,4.30548987]
[1773238022644,4.41571276,86.269,86.231,4.30548987]
[1773238022833,7.53247812,86.28,86.241,4.30548987]
[1773238023032,7.53247812,86.27,86.241,4.30548987]
[1773238023338,11.58896267,86.289,86.251,4.30548987]
[1773238023537,11.58761978,86.299,86.261,15.89821427]
[1773238023754,7.53247812,86.29,86.262,4.30548987]
[1773238024055,7.53247812,86.29,86.257,11.59325598]
[1773238024246,7.53247812,86.29,86.257,15.89874585]
[1773238024554,4.41571276,86.298,86.26,7.53247812]
[1773238025176,4.41571276,86.298,86.243,2.76]
[1773238025177,7.53247812,86.29,86.25,7.53247812]
[1773238025334,7.53247812,86.27,86.231,4.30548987]
[1773238025740,11.59164937,86.269,86.233,4.30548987]
[1773238025942,4.41571276,86.279,86.241,4.30548987]
[1773238026138,7.53247812,86.27,86.241,4.30548987]
[1773238026461,4.41571276,86.269,86.233,4.30548987]
[1773238026657,11.588722,86.291,86.26,11.83796799]
[1773238026863,4.82477569,86.323,86.232,98.57129602]
[1773238026864,11.58671372,86.306,86.271,4.30548987]
[1773238027162,11.58627721,86.309,86.271,4.30548987]
[1773238027557,7.53247812,86.29,86.257,4.30548987]
[1773238027754,4.41571276,86.299,86.26,7.53247812]
[1773238027959,4.41571276,86.297,86.261,11.5927244]
[1773238028158,7.53247812,86.29,86.261,4.30548987]
[1773238028671,4.41571276,86.297,86.261,4.30548987]
[1773238029345,11.94819088,86.29,86.251,4.30548987]
[1773238029661,11.94819088,86.29,86.212,57.52188891]
[1773238029662,7.53247812,86.28,86.241,4.30548987]
[1773238029845,11.58909697,86.288,86.251,4.30548987]
[1773238030045,7.53247812,86.28,86.252,11.59393405]
[1773238030246,4.41571276,86.287,86.252,11.59393405]
[1773238030447,7.53247812,86.28,86.251,4.30548987]
[1773238030645,4.41571276,86.279,86.243,11.59513855]
[1773238030863,4.41571276,86.279,86.241,11.59541285]
[1773238031060,4.41571276,86.279,86.24,11.83796799]
[1773238031265,11.94819088,86.27,86.23,7.53247812]
[1773238031562,4.41571276,86.259,86.223,11.59774477]
[1773238031750,86.91822732,86.288,86.241,4.30548987]
[1773238031751,7.53247812,86.28,86.241,4.30548987]
[1773238031960,11.59030586,86.279,86.242,15.90076827]
[1773238032349,11.59030586,86.279,86.243,4.30548987]
[1773238032544,4.41571276,86.278,86.243,4.30548987]
[1773238032757,16.00601862,86.279,86.243,4.30548987]
[1773238032960,4.41571276,86.278,86.242,11.5952784]
[1773238033273,4.41571276,86.278,86.209,3.69383402]
[1773238033274,7.53247812,86.26,86.221,4.30548987]
[1773238033773,11.94819088,86.26,86.221,4.30548987]
[1773238033953,4.41571276,86.259,86.221,4.30548987]
[1773238034280,11.59312759,86.258,86.222,11.59796803]
[1773238034483,11.59262539,86.262,86.231,4.30548987]
[1773238034769,40.57410043,86.262,86.231,4.30548987]
[1773238034944,7.53247812,86.26,86.231,4.30548987]
[1773238035146,11.59262539,86.262,86.231,4.30548987]
[1773238035666,7.53247812,86.25,86.219,4.30548987]
[1773238035978,40.57410043,86.262,86.202,2.76]
[1773238035979,7.53247812,86.26,86.221,4.30548987]
[1773238036470,11.59164937,86.269,86.23,7.53247812]
[1773238036768,14.37011855,86.281,86.241,4.30548987]
[1773238037068,14.37011855,86.281,86.251,4.30548987]
[1773238037270,2.78,86.281,86.251,4.30548987]
[1773238037582,4.41571276,86.299,86.261,4.30548987]
[1773238037583,40.55713921,86.298,86.261,4.30548987]
[1773238037951,4.41571276,86.297,86.261,4.30548987]
[1773238038468,7.53247812,86.29,86.262,11.59259001]
[1773238038675,7.53247812,86.29,86.262,15.89807988]
[1773238038850,40.55807915,86.296,86.262,15.89807988]
[1773238039246,4.41571276,86.289,86.255,4.30548987]
[1773238039475,4.41571276,86.305,86.261,4.30548987]
[1773238039657,11.94819088,86.3,86.261,4.30548987]
[1773238039857,4.25750767,86.299,86.26,7.53247812]
[1773238040075,4.25750767,86.289,86.254,11.59361156]
[1773238040271,4.25750767,86.289,86.251,4.14844624]
[1773238040488,4.25750767,86.289,86.253,4.14844624]
[1773238041262,2.78,86.319,86.261,4.14844624]
[1773238041263,11.58909697,86.288,86.261,4.14844624]
[1773238041475,11.58761978,86.299,86.271,4.14844624]
[1773238041693,2.78,86.319,86.281,4.14844624]
[1773238041859,4.25750767,86.317,86.281,4.14844624]
[1773238042765,7.53247812,86.31,86.281,4.14844624]
[1773238042974,11.78998579,86.3,86.261,4.14844624]
[1773238043279,7.53247812,86.29,86.261,4.14844624]
[1773238043580,7.53247812,86.29,86.25,7.53247812]
[1773238043581,7.53247812,86.29,86.251,4.14844624]
[1773238043883,4.25750767,86.296,86.252,4.14844624]
[1773238044078,7.53247812,86.29,86.252,4.14844624]
[1773238044378,4.25750767,86.296,86.26,7.53247812]
[1773238044562,4.25750767,86.296,86.261,4.14844624]
[1773238044760,7.53247812,86.29,86.261,4.14844624]
[1773238044965,4.25750767,86.289,86.252,4.14844624]
[1773238045167,7.53247812,86.26,86.227,4.14844624]
[1773238045374,11.59299319,86.259,86.228,11.59716101]
[1773238045567,11.59178374,86.268,86.231,4.14844624]
[1773238045959,4.25750767,86.267,86.231,4.14844624]
[1773238047069,11.59178374,86.268,86.231,4.14844624]
[1773238047466,7.53247812,86.3,86.261,4.14844624]
[1773238047661,11.58761978,86.299,86.261,4.14844624]
[1773238048573,7.53247812,86.29,86.261,4.14844624]
[1773238048773,7.53247812,86.28,86.251,4.14844624]
[1773238048964,4.25750767,86.289,86.251,4.14844624]
[1773238049363,4.25750767,86.298,86.263,4.14844624]
[1773238049764,4.25750767,86.289,86.254,4.14844624]
[1773238049970,44.81417691,86.299,86.261,4.14844624]
[1773238050375,4.25750767,86.289,86.253,11.59379963]
[1773238051386,4.25750767,86.289,86.254,4.14844624]
[1773238051781,11.58909697,86.288,86.261,4.14844624]
[1773238052276,11.58909697,86.288,86.255,11.5935308]
[1773238052478,11.58909697,86.288,86.255,15.74197704]
[1773238052681,11.5884884,86.293,86.261,4.14844624]
[1773238053683,4.25750767,86.289,86.24,7.53247812]
[1773238053883,15.84781353,86.279,86.242,4.14844624]
[1773238054083,11.5894859,86.286,86.251,4.14844624]
[1773238054382,33.2266151,86.299,86.261,4.14844624]
[1773238054767,11.58775406,86.298,86.261,4.14844624]
[1773238054973,4.25750767,86.297,86.261,4.14844624]
[1773238055285,4.25750767,86.289,86.251,4.14844624]
[1773238055780,4.25750767,86.289,86.253,4.14844624]
[1773238055781,11.58909697,86.288,86.253,4.14844624]
[1773238056585,4.25750767,86.287,86.253,4.14844624]
[1773238056784,4.25750767,86.287,86.247,4.14844624]
[1773238056982,4.25750767,86.287,86.25,7.53247812]
[1773238057282,4.25750767,86.287,86.251,4.14844624]
[1773238057972,11.58936559,86.286,86.253,4.14844624]
[1773238058783,44.82028725,86.286,86.253,4.14844624]
[1773238059688,4.25750767,86.279,86.243,4.14844624]
[1773238059889,4.25750767,86.269,86.23,11.59689203]
[1773238060097,4.25750767,86.269,86.23,4.14844624]
[1773238060287,4.25750767,86.269,86.231,4.32785674]
[1773238060678,43.34654071,86.278,86.251,4.32785674]
[1773238060679,11.5904402,86.278,86.251,4.32785674]
[1773238061092,40.56654071,86.278,86.251,4.32785674]
[1773238061390,2.78,86.289,86.261,4.32785674]
[1773238061592,7.53247812,86.29,86.261,4.32785674]
[1773238061973,11.58896267,86.289,86.261,4.32785674]
[1773238062493,4.48412878,86.288,86.253,4.32785674]
[1773238062696,4.48412878,86.288,86.254,11.59366522]
[1773238063079,12.0166069,86.28,86.241,4.32785674]
[1773238063274,4.48412878,86.279,86.241,4.32785674]
[1773238063800,7.53247812,86.27,86.241,4.32785674]
[1773238063989,11.59164937,86.269,86.241,4.32785674]
[1773238064177,11.59164937,86.269,86.241,15.92326959]
[1773238064675,11.5904402,86.278,86.242,4.32785674]
[1773238064888,4.48412878,86.277,86.242,4.32785674]
[1773238065292,11.5904402,86.278,86.242,4.32785674]
[1773238065494,36.50140363,86.3,86.251,4.32785674]
[1773238065795,36.50140363,86.3,86.241,40.58394498]
[1773238065796,4.48412878,86.298,86.261,4.32785674]
[1773238065997,11.58761978,86.299,86.263,4.32785674]
[1773238066198,11.58690547,86.305,86.271,4.32785674]
[1773238066396,7.53247812,86.32,86.281,4.32785674]
[1773238066593,2.78,86.336,86.301,4.32785674]
[1773238067096,7.53247812,86.33,86.301,4.32785674]